[Event "Astana Open GM-norm 2018"]
[Site "Astana"]
[Date "2018.06.17"]
[Round "1"]
[White "Kazybek, Nogerbek"]
[Black "Baurzhan, Kassimov"]
[Result "0-1"]
[ECO "C70"]
[WhiteElo "2293"]
[BlackElo "2386"]
[Annotator "NA"]
[PlyCount "144"]
[EventDate "2018.06.17"]
[EventType "tourn"]
[EventCountry "KAZ"]
[SourceTitle "playchess.com"]
[Source "ChessBase"]
[SourceQuality "1"]
[TimeControl "5400+30"]

1. e4 {[%emt 0:00:05]} e5 {[%emt 0:01:13]} 2. Nf3 {[%emt 0:00:11]} Nc6 {[%emt 0:00:01]} 3. Bb5 {[%emt 0:00:16]} a6 {[%emt 0:03:02]} 4. Ba4 {[%emt 0:00:49]} Nge7 {[%emt 0:00:16]} 5. c3 {[%emt 0:01:29]} g6 {[%emt 0:03:23]} 6. d4 {[%emt 0:00:10]} exd4 {[%emt 0:00:41]} 7. cxd4 {[%emt 0:00:06]} b5 {[%emt 0:00:56]} 8. Bb3 {[%emt 0:00:42]} Bg7 {[%emt 0:00:43]} 9. d5 {[%emt 0:00:34]} Na5 {[%emt 0:00:53]} 10. Bd2 {[%emt 0:00:37]} c5 {[%emt 0:02:07]} 11. Bc3 {[%emt 0:09:11]} O-O {[%emt 0:03:39]} 12. Bxg7 {[%emt 0:02:31]} Kxg7 {[%emt 0:00:07]} 13. O-O {[%emt 0:00:36]} d6 {[%emt 0:02:22]} 14. Bc2 {[%emt 0:03:17]} Ng8 {[%emt 0:03:55]} 15. h3 {[%emt 0:03:23]} Qf6 {[%emt 0:01:02]} 16. Nc3 {[%emt 0:06:36]} Nc4 {[%emt 0:01:33]} 17. Bb3 {[%emt 0:01:07]} Nxb2 {[%emt 0:15:08]} 18. e5 {[%emt 0:04:09]} dxe5 {[%emt 0:00:53]} 19. Qe2 {[%emt 0:00:11]} c4 {[%emt 0:02:13]} 20. Ne4 {[%emt 0:02:08]} Qf4 {[%emt 0:02:41]} 21. g3 {[%emt 0:06:27]} Qf5 {[%emt 0:01:35]} 22. Nh4 {[%emt 0:03:34]} Qd7 {[%emt 0:09:42]} 23. Qxb2 {[%emt 0:02:26]} cxb3 {[%emt 0:00:15]} 24. Qxe5+ {[%emt 0:00:53]} f6 {[%emt 0:00:22]} 25. Qd4 {[%emt 0:00:42]} Bb7 {[%emt 0:02:27]} 26. Rad1 {[%emt 0:03:24]} Rfd8 {[%emt 0:03:54]} 27. Qb6 {[%emt 0:06:25]} Bxd5 {[%emt 0:03:38]} 28. axb3 {[%emt 0:06:40]} Qc6 {[%emt 0:04:42]} 29. Qxc6 {[%emt 0:00:13]} Bxc6 {[%emt 0:00:05]} 30. Rxd8 {[%emt 0:08:21]} Rxd8 {[%emt 0:00:13]} 31. Nc5 {[%emt 0:00:04]} Ra8 {[%emt 0:02:47]} 32. b4 {[%emt 0:06:56]} a5 {[%emt 0:01:16]} 33. bxa5 {[%emt 0:00:28]} Rxa5 {[%emt 0:00:08]} 34. Ne6+ {[%emt 0:00:06]} Kh6 {[%emt 0:02:05]} 35. Nd4 {[%emt 0:06:51]} Bd5 {[%emt 0:02:32]} 36. Rb1 {[%emt 0:00:38]} Bc4 {[%emt 0:04:37]} 37. Ng2 {[%emt 0:00:27]} Ne7 {[%emt 0:00:13]} 38. Ne3 {[%emt 0:00:15]} Nc8 {[%emt 0:04:42]} 39. Rd1 {[%emt 0:02:04]} Ra6 {[%emt 0:00:50]} 40. h4 {[%emt 0:04:23]} Kg7 {[%emt 0:01:05]} 41. Ndc2 {[%emt 0:00:46]} Rd6 {[%emt 0:00:27]} 42. Rc1 {[%emt 0:00:54]} Nb6 {[%emt 0:01:56]} 43. Na3 {[%emt 0:00:57]} Bd3 {[%emt 0:06:03]} 44. Rc7+ {[%emt 0:00:37]} Rd7 {[%emt 0:00:21]} 45. Rxd7+ {[%emt 0:02:53]} Nxd7 {[%emt 0:00:04]} 46. Nd5 {[%emt 0:00:02]} Kf7 {[%emt 0:00:34]} 47. f3 {[%emt 0:00:33]} g5 {[%emt 0:02:43]} 48. Kf2 {[%emt 0:02:30]} Ne5 {[%emt 0:00:48]} 49. f4 {[%emt 0:01:25]} gxf4 {[%emt 0:01:12]} 50. gxf4 {[%emt 0:00:07]} Nc6 {[%emt 0:01:20]} 51. Ke3 {[%emt 0:01:10]} b4 {[%emt 0:00:05]} 52. Kxd3 {[%emt 0:00:04]} bxa3 {[%emt 0:00:03]} 53. Kc3 {[%emt 0:00:06]} Ke6 {[%emt 0:00:10]} 54. Ne3 {[%emt 0:00:06]} h5 {[%emt 0:00:25]} 55. Kb3 {[%emt 0:00:05]} Nd4+ {[%emt 0:00:13]} 56. Kxa3 {[%emt 0:00:02]} Nf5 {[%emt 0:00:04]} 57. Ng2 {[%emt 0:01:03]} Kd5 {[%emt 0:00:13]} 58. Kb3 {[%emt 0:00:05]} Ke4 {[%emt 0:00:10]} 59. Kc3 {[%emt 0:00:05]} Kf3 {[%emt 0:00:31]} 60. Ne1+ {[%emt 0:00:06]} Kxf4 {[%emt 0:00:04]} 61. Kd2 {[%emt 0:00:04]} Nxh4 {[%emt 0:00:49]} 62. Ke2 {[%emt 0:00:01]} Kg3 {[%emt 0:00:20]} 63. Kf1 {[%emt 0:00:04]} f5 {[%emt 0:00:08]} 64. Nc2 {[%emt 0:00:17]} Nf3 {[%emt 0:00:56]} 65. Ne3 {[%emt 0:00:12]} Nd4 {[%emt 0:01:53]} 66. Nd1 {[%emt 0:01:15]} h4 {[%emt 0:01:11]} 67. Nc3 {[%emt 0:00:22]} Kf3 {[%emt 0:00:26]} 68. Nd5 {[%emt 0:01:02]} Ne2 {[%emt 0:01:20]} 69. Ne7 {[%emt 0:00:44]} h3 {[%emt 0:00:35]} 70. Nxf5 {[%emt 0:00:06]} h2 {[%emt 0:00:03]} 71. Nh4+ {[%emt 0:00:06]} Kg3 {[%emt 0:00:03]} 72. Nf5+ {[%emt 0:00:06]} Kh3 {[%emt 0:00:03]} 0-1

[Event "Astana Open GM-norm 2018"]
[Site "Astana"]
[Date "2018.06.18"]
[Round "2"]
[White "Kazybek, Nogerbek"]
[Black "Tair, Vahidov"]
[Result "1/2-1/2"]
[ECO "C88"]
[WhiteElo "2293"]
[BlackElo "2405"]
[Annotator "NA"]
[PlyCount "25"]
[EventDate "2018.06.17"]
[EventType "tourn"]
[EventCountry "KAZ"]
[SourceTitle "playchess.com"]
[Source "ChessBase"]
[SourceQuality "1"]
[TimeControl "5400+30"]

1. e4 {[%emt 0:00:04]} e5 {[%emt 0:00:12]} 2. Nf3 {[%emt 0:00:06]} Nc6 {[%emt 0:00:09]} 3. Bb5 {[%emt 0:00:06]} a6 {[%emt 0:01:03]} 4. Ba4 {[%emt 0:00:07]} Nf6 {[%emt 0:00:15]} 5. O-O {[%emt 0:00:09]} Be7 {[%emt 0:01:28]} 6. Re1 {[%emt 0:00:11]} b5 {[%emt 0:01:17]} 7. Bb3 {[%emt 0:00:21]} O-O {[%emt 0:00:19]} 8. h3 {[%emt 0:00:23]} d5 {[%emt 0:01:13]} 9. exd5 {[%emt 0:01:32]} Nxd5 {[%emt 0:00:06]} 10. Nxe5 {[%emt 0:01:49]} Nxe5 {[%emt 0:00:12]} 11. Rxe5 {[%emt 0:00:06]} Nb6 {[%emt 0:00:24]} 12. d4 {[%emt 0:03:23]} Bf6 {[%emt 0:05:39]} 13. Re1 {[%emt 0:00:08]} 1/2-1/2

[Event "Astana Open GM-norm 2018"]
[Site "Astana"]
[Date "2018.06.19"]
[Round "3"]
[White "Tair, Vahidov"]
[Black "Baurzhan, Kassimov"]
[Result "1/2-1/2"]
[ECO "A50"]
[WhiteElo "2405"]
[BlackElo "2386"]
[Annotator "NA"]
[PlyCount "50"]
[EventDate "2018.06.17"]
[EventType "tourn"]
[EventCountry "KAZ"]
[SourceTitle "playchess.com"]
[Source "ChessBase"]
[SourceQuality "1"]
[TimeControl "5400+30"]

1. d4 {[%emt 0:06:42]} Nf6 {[%emt 0:07:28]} 2. c4 {[%emt 0:02:19]} b6 {[%emt 0:00:30]} 3. Nc3 {[%emt 0:01:32]} Bb7 {[%emt 0:00:36]} 4. f3 {[%emt 0:09:44]} d5 {[%emt 0:01:03]} 5. cxd5 {[%emt 0:02:57]} Nxd5 {[%emt 0:02:09]} 6. e4 {[%emt 0:00:09]} Nxc3 {[%emt 0:00:22]} 7. bxc3 {[%emt 0:00:08]} e5 {[%emt 0:00:03]} 8. Be3 {[%emt 0:12:49]} Nd7 {[%emt 0:10:20]} 9. Bc4 {[%emt 0:04:31]} exd4 {[%emt 0:01:59]} 10. cxd4 {[%emt 0:01:24]} Bb4+ {[%emt 0:00:08]} 11. Kf2 {[%emt 0:04:02]} O-O {[%emt 0:05:01]} 12. Ne2 {[%emt 0:00:30]} c5 {[%emt 0:01:17]} 13. Bb5 {[%emt 0:29:47]} Qh4+ {[%emt 0:14:47]} 14. g3 {[%emt 0:04:05]} Qe7 {[%emt 0:00:16]} 15. Bxd7 {[%emt 0:00:35]} cxd4 {[%emt 0:01:31]} 16. Qxd4 {[%emt 0:05:21]} Rad8 {[%emt 0:00:46]} 17. Rhd1 {[%emt 0:07:32]} Bc8 {[%emt 0:00:29]} 18. Nf4 {[%emt 0:01:11]} Bc5 {[%emt 0:01:19]} 19. Qc3 {[%emt 0:01:24]} Bxe3+ {[%emt 0:00:44]} 20. Kxe3 {[%emt 0:01:02]} Rxd7 {[%emt 0:01:53]} 21. Rxd7 {[%emt 0:00:34]} Bxd7 {[%emt 0:00:59]} 22. Nd5 {[%emt 0:02:21]} Qd6 {[%emt 0:01:58]} 23. Rd1 {[%emt 0:00:50]} Qh6+ {[%emt 0:02:40]} 24. Nf4 {[%emt 0:00:10]} Be6 {[%emt 0:04:10]} 25. h4 {[%emt 0:00:03]} f6 {[%emt 0:12:16]} 1/2-1/2

[Event "Astana Open GM-norm 2018"]
[Site "Astana"]
[Date "2018.06.19"]
[Round "3"]
[White "Arystanbek, Urazayev"]
[Black "Kazybek, Nogerbek"]
[Result "1/2-1/2"]
[ECO "C03"]
[WhiteElo "2303"]
[BlackElo "2293"]
[Annotator "NA"]
[PlyCount "95"]
[EventDate "2018.06.17"]
[EventType "tourn"]
[EventCountry "KAZ"]
[SourceTitle "playchess.com"]
[Source "ChessBase"]
[SourceQuality "1"]
[TimeControl "5400+30"]

1. e4 {[%emt 0:00:06]} e6 {[%emt 0:00:18]} 2. d4 {[%emt 0:00:12]} d5 {[%emt 0:00:07]} 3. Nd2 {[%emt 0:00:04]} Be7 {[%emt 0:00:11]} 4. Bd3 {[%emt 0:01:11]} c5 {[%emt 0:00:52]} 5. dxc5 {[%emt 0:00:16]} Nf6 {[%emt 0:00:07]} 6. Qe2 {[%emt 0:00:19]} O-O {[%emt 0:01:28]} 7. Ngf3 {[%emt 0:01:28]} a5 {[%emt 0:00:47]} 8. O-O {[%emt 0:00:49]} Na6 {[%emt 0:00:29]} 9. e5 {[%emt 0:00:40]} Nd7 {[%emt 0:00:24]} 10. Nd4 {[%emt 0:00:23]} Ndxc5 {[%emt 0:02:28]} 11. f4 {[%emt 0:00:16]} Nxd3 {[%emt 0:01:59]} 12. cxd3 {[%emt 0:00:13]} Nb4 {[%emt 0:02:58]} 13. N2f3 {[%emt 0:02:17]} Qb6 {[%emt 0:02:14]} 14. Be3 {[%emt 0:03:58]} Qa6 {[%emt 0:00:44]} 15. Rfd1 {[%emt 0:01:47]} Bd7 {[%emt 0:01:14]} 16. a3 {[%emt 0:03:31]} Nc6 {[%emt 0:00:57]} 17. Rac1 {[%emt 0:01:45]} Rfc8 {[%emt 0:03:59]} 18. g4 {[%emt 0:06:49]} Nxd4 {[%emt 0:03:59]} 19. Nxd4 {[%emt 0:00:44]} Ba4 {[%emt 0:19:02]} 20. Rf1 {[%emt 0:05:49]} Bb5 {[%emt 0:03:27]} 21. Rcd1 {[%emt 0:04:47]} Bc5 {[%emt 0:03:21]} 22. f5 {[%emt 0:06:32]} exf5 {[%emt 0:01:26]} 23. gxf5 {[%emt 0:02:39]} Re8 {[%emt 0:05:00]} 24. Nxb5 {[%emt 0:07:09]} Qxb5 {[%emt 0:03:04]} 25. Bxc5 {[%emt 0:02:12]} Qxc5+ {[%emt 0:00:07]} 26. d4 {[%emt 0:00:13]} Qe7 {[%emt 0:05:00]} 27. Qg2 {[%emt 0:03:49]} Qh4 {[%emt 0:02:56]} 28. f6 {[%emt 0:06:45]} g6 {[%emt 0:01:40]} 29. Rf3 {[%emt 0:05:57]} Rac8 {[%emt 0:02:16]} 30. Rg3 {[%emt 0:09:29]} Qf4 {[%emt 0:04:04]} 31. Rf3 {[%emt 0:05:50]} Qh4 {[%emt 0:02:05]} 32. Rg3 {[%emt 0:04:52]} Qf4 {[%emt 0:00:18]} 33. Qd2 {[%emt 0:00:35]} Qh4 {[%emt 0:06:30]} 34. Qg2 {[%emt 0:05:14]} Qf4 {[%emt 0:00:22]} 35. Rf3 {[%emt 0:01:23]} Qh4 {[%emt 0:00:37]} 36. Rc3 {[%emt 0:00:46]} b5 {[%emt 0:03:59]} 37. Kh1 {[%emt 0:02:14]} Rxc3 {[%emt 0:01:42]} 38. bxc3 {[%emt 0:00:06]} Rd8 {[%emt 0:00:20]} 39. Qf3 {[%emt 0:01:12]} Qg5 {[%emt 0:02:21]} 40. Rg1 {[%emt 0:02:50]} Qd2 {[%emt 0:01:05]} 41. e6 {[%emt 0:00:48]} fxe6 {[%emt 0:02:36]} 42. f7+ {[%emt 0:00:05]} Kg7 {[%emt 0:00:19]} 43. Rf1 {[%emt 0:00:33]} Rf8 {[%emt 0:00:07]} 44. Qf6+ {[%emt 0:00:22]} Kh6 {[%emt 0:00:07]} 45. Qh4+ {[%emt 0:01:06]} Kg7 {[%emt 0:00:21]} 46. Qf6+ {[%emt 0:00:09]} Kh6 {[%emt 0:00:05]} 47. Qh4+ {[%emt 0:00:27]} Kg7 {[%emt 0:00:07]} 48. Qf6+ {[%emt 0:00:04]} 1/2-1/2

[Event "Astana Open GM-norm 2018"]
[Site "Astana"]
[Date "2018.06.20"]
[Round "4"]
[White "Kazybek, Nogerbek"]
[Black "Zhanibek, Amanov"]
[Result "1/2-1/2"]
[ECO "C45"]
[WhiteElo "2293"]
[BlackElo "2340"]
[Annotator "NA"]
[PlyCount "111"]
[EventDate "2018.06.17"]
[EventType "tourn"]
[EventCountry "KAZ"]
[SourceTitle "playchess.com"]
[Source "ChessBase"]
[SourceQuality "1"]
[TimeControl "5400+30"]

1. e4 {[%emt 0:00:03]} e5 {[%emt 0:00:24]} 2. Nf3 {[%emt 0:00:06]} Nc6 {[%emt 0:00:04]} 3. d4 {[%emt 0:00:09]} exd4 {[%emt 0:00:46]} 4. Nxd4 {[%emt 0:00:07]} Qf6 {[%emt 0:00:13]} 5. Be3 {[%emt 0:01:26]} Bc5 {[%emt 0:00:17]} 6. c3 {[%emt 0:00:10]} Nge7 {[%emt 0:00:10]} 7. Bc4 {[%emt 0:00:52]} O-O {[%emt 0:00:27]} 8. O-O {[%emt 0:00:16]} b6 {[%emt 0:00:19]} 9. Nxc6 {[%emt 0:04:34]} Qxc6 {[%emt 0:00:37]} 10. Bxc5 {[%emt 0:01:39]} bxc5 {[%emt 0:02:41]} 11. Re1 {[%emt 0:02:47]} Rb8 {[%emt 0:02:09]} 12. b3 {[%emt 0:02:21]} d6 {[%emt 0:03:53]} 13. Nd2 {[%emt 0:03:04]} a5 {[%emt 0:04:44]} 14. f4 {[%emt 0:07:44]} Bb7 {[%emt 0:08:45]} 15. Qh5 {[%emt 0:02:48]} Rbd8 {[%emt 0:04:58]} 16. Nf3 {[%emt 0:03:03]} d5 {[%emt 0:03:41]} 17. exd5 {[%emt 0:00:27]} Nxd5 {[%emt 0:00:01]} 18. Rad1 {[%emt 0:00:35]} g6 {[%emt 0:06:06]} 19. Qh6 {[%emt 0:05:51]} Qf6 {[%emt 0:11:32]} 20. Ng5 {[%emt 0:02:16]} Qg7 {[%emt 0:00:06]} 21. Qxg7+ {[%emt 0:00:06]} Kxg7 {[%emt 0:00:01]} 22. Bxd5 {[%emt 0:01:06]} Rxd5 {[%emt 0:00:25]} 23. Rxd5 {[%emt 0:01:04]} Bxd5 {[%emt 0:00:54]} 24. c4 {[%emt 0:01:07]} h6 {[%emt 0:01:22]} 25. cxd5 {[%emt 0:00:06]} hxg5 {[%emt 0:00:01]} 26. fxg5 {[%emt 0:00:27]} Rd8 {[%emt 0:14:55]} 27. Re5 {[%emt 0:01:09]} a4 {[%emt 0:03:39]} 28. Kf2 {[%emt 0:07:16]} axb3 {[%emt 0:02:50]} 29. axb3 {[%emt 0:00:05]} Rb8 {[%emt 0:02:35]} 30. Re3 {[%emt 0:01:04]} Rd8 {[%emt 0:02:09]} 31. Rd3 {[%emt 0:00:10]} Kf8 {[%emt 0:00:09]} 32. Ke2 {[%emt 0:01:39]} Ke7 {[%emt 0:02:25]} 33. h4 {[%emt 0:06:39]} Kd6 {[%emt 0:05:35]} 34. Rf3 {[%emt 0:09:39]} Ke7 {[%emt 0:03:38]} 35. Re3+ {[%emt 0:01:21]} Kd6 {[%emt 0:02:21]} 36. g3 {[%emt 0:03:38]} Rb8 {[%emt 0:02:13]} 37. Rf3 {[%emt 0:02:39]} Ke7 {[%emt 0:01:03]} 38. Kd2 {[%emt 0:02:12]} Rb4 {[%emt 0:00:49]} 39. Kc3 {[%emt 0:00:49]} Rd4 {[%emt 0:01:32]} 40. Rf6 {[%emt 0:01:59]} Rxd5 {[%emt 0:02:40]} 41. Kc4 {[%emt 0:02:36]} Rd4+ {[%emt 0:00:14]} 42. Kxc5 {[%emt 0:00:05]} Rd3 {[%emt 0:00:04]} 43. b4 {[%emt 0:00:46]} Rxg3 {[%emt 0:03:12]} 44. Rf4 {[%emt 0:01:59]} Rc3+ {[%emt 0:02:12]} 45. Kb5 {[%emt 0:00:25]} Rc1 {[%emt 0:03:17]} 46. Ka6 {[%emt 0:00:26]} Rc3 {[%emt 0:00:48]} 47. Kb7 {[%emt 0:00:28]} c6 {[%emt 0:00:08]} 48. Kc7 {[%emt 0:00:13]} Rc1 {[%emt 0:00:53]} 49. Rd4 {[%emt 0:03:57]} Rc3 {[%emt 0:00:21]} 50. Re4+ {[%emt 0:01:02]} Kf8 {[%emt 0:00:02]} 51. Kd7 {[%emt 0:00:24]} Rc1 {[%emt 0:00:18]} 52. Rf4 {[%emt 0:00:23]} Rc3 {[%emt 0:00:08]} 53. Re4 {[%emt 0:03:21]} Rc1 {[%emt 0:00:07]} 54. Kd6 {[%emt 0:00:07]} Rc3 {[%emt 0:00:12]} 55. Ke5 {[%emt 0:00:48]} c5 {[%emt 0:00:27]} 56. bxc5 {[%emt 0:00:33]} 1/2-1/2

[Event "Astana Open GM-norm 2018"]
[Site "Astana"]
[Date "2018.06.21"]
[Round "5"]
[White "Arystanbek, Urazayev"]
[Black "Baurzhan, Kassimov"]
[Result "1/2-1/2"]
[ECO "C67"]
[WhiteElo "2303"]
[BlackElo "2386"]
[Annotator "NA"]
[PlyCount "48"]
[EventDate "2018.06.17"]
[EventType "tourn"]
[EventCountry "KAZ"]
[SourceTitle "playchess.com"]
[Source "ChessBase"]
[SourceQuality "1"]
[TimeControl "5400+30"]

1. e4 {[%emt 0:00:02]} e5 {[%emt 0:11:16]} 2. Nf3 {[%emt 0:00:10]} Nc6 {[%emt 0:00:04]} 3. Bb5 {[%emt 0:00:05]} Nf6 {[%emt 0:00:14]} 4. O-O {[%emt 0:04:21]} Nxe4 {[%emt 0:00:11]} 5. d4 {[%emt 0:00:13]} Nd6 {[%emt 0:00:04]} 6. dxe5 {[%emt 0:00:11]} Nxb5 {[%emt 0:00:26]} 7. a4 {[%emt 0:00:05]} Nbd4 {[%emt 0:00:47]} 8. Nxd4 {[%emt 0:00:07]} Nxd4 {[%emt 0:00:03]} 9. Qxd4 {[%emt 0:00:10]} d5 {[%emt 0:00:25]} 10. exd6 {[%emt 0:00:12]} Qxd6 {[%emt 0:00:05]} 11. Qe4+ {[%emt 0:00:14]} Qe6 {[%emt 0:00:15]} 12. Qd4 {[%emt 0:00:05]} Qd6 {[%emt 0:00:27]} 13. Qe3+ {[%emt 0:00:06]} Be7 {[%emt 0:04:55]} 14. Nc3 {[%emt 0:01:10]} c6 {[%emt 0:04:27]} 15. Re1 {[%emt 0:00:34]} Be6 {[%emt 0:08:41]} 16. Ne4 {[%emt 0:00:24]} Qc7 {[%emt 0:04:17]} 17. Nc5 {[%emt 0:00:26]} Bxc5 {[%emt 0:00:33]} 18. Qxc5 {[%emt 0:00:05]} Qe7 {[%emt 0:00:14]} 19. Qe5 {[%emt 0:00:36]} O-O {[%emt 0:00:52]} 20. Bh6 {[%emt 0:00:25]} gxh6 {[%emt 0:04:06]} 21. Ra3 {[%emt 0:00:15]} f6 {[%emt 0:02:51]} 22. Rg3+ {[%emt 0:07:34]} Kh8 {[%emt 0:00:10]} 23. Qxe6 {[%emt 0:00:13]} Qxe6 {[%emt 0:00:08]} 24. Rxe6 {[%emt 0:00:04]} Rae8 {[%emt 0:01:17]} 1/2-1/2

[Event "Astana Open GM-norm 2018"]
[Site "Astana"]
[Date "2018.06.21"]
[Round "5"]
[White "Gulmira, Dauletova"]
[Black "Kazybek, Nogerbek"]
[Result "1/2-1/2"]
[ECO "B32"]
[WhiteElo "2273"]
[BlackElo "2293"]
[Annotator "NA"]
[PlyCount "35"]
[EventDate "2018.06.17"]
[EventType "tourn"]
[EventCountry "KAZ"]
[SourceTitle "playchess.com"]
[Source "ChessBase"]
[SourceQuality "1"]
[TimeControl "5400+30"]

1. e4 {[%emt 0:00:39]} c5 {[%emt 0:00:11]} 2. Nf3 {[%emt 0:00:11]} Nc6 {[%emt 0:00:07]} 3. d4 {[%emt 0:00:27]} cxd4 {[%emt 0:00:09]} 4. Nxd4 {[%emt 0:00:06]} e5 {[%emt 0:00:11]} 5. Nb5 {[%emt 0:00:08]} d6 {[%emt 0:00:05]} 6. N1c3 {[%emt 0:00:59]} a6 {[%emt 0:00:39]} 7. Na3 {[%emt 0:00:04]} Be7 {[%emt 0:00:09]} 8. Nc4 {[%emt 0:00:16]} b5 {[%emt 0:00:11]} 9. Ne3 {[%emt 0:00:09]} Nf6 {[%emt 0:00:12]} 10. Bd3 {[%emt 0:00:37]} O-O {[%emt 0:00:16]} 11. O-O {[%emt 0:00:26]} Rb8 {[%emt 0:00:07]} 12. a3 {[%emt 0:01:02]} Re8 {[%emt 0:07:30]} 13. Re1 {[%emt 0:01:59]} Be6 {[%emt 0:08:10]} 14. Ncd5 {[%emt 0:03:11]} Nd7 {[%emt 0:01:50]} 15. c3 {[%emt 0:01:00]} Bg5 {[%emt 0:01:36]} 16. Nb4 {[%emt 0:03:03]} Rb6 {[%emt 0:07:07]} 17. Nxc6 {[%emt 0:17:37]} Rxc6 {[%emt 0:00:21]} 18. a4 {[%emt 0:00:07]} 1/2-1/2

[Event "Astana Open GM-norm 2018"]
[Site "Astana"]
[Date "2018.06.22"]
[Round "6"]
[White "Tair, Vahidov"]
[Black "Gulmira, Dauletova"]
[Result "1-0"]
[ECO "D02"]
[WhiteElo "2405"]
[BlackElo "2273"]
[Annotator "NA"]
[PlyCount "91"]
[EventDate "2018.06.17"]
[EventType "tourn"]
[EventCountry "KAZ"]
[SourceTitle "playchess.com"]
[Source "ChessBase"]
[SourceQuality "1"]
[TimeControl "5400+30"]

1. Nf3 {[%emt 0:00:09]} d5 {[%emt 0:00:24]} 2. g3 {[%emt 0:01:20]} c6 {[%emt 0:00:24]} 3. Bg2 {[%emt 0:01:06]} Bg4 {[%emt 0:00:12]} 4. d4 {[%emt 0:00:25]} Nd7 {[%emt 0:01:18]} 5. Nbd2 {[%emt 0:00:47]} Ngf6 {[%emt 0:00:28]} 6. O-O {[%emt 0:00:28]} e6 {[%emt 0:00:42]} 7. Re1 {[%emt 0:00:37]} Be7 {[%emt 0:00:32]} 8. e4 {[%emt 0:00:25]} O-O {[%emt 0:00:44]} 9. c3 {[%emt 0:01:23]} Bh5 {[%emt 0:00:43]} 10. h3 {[%emt 0:09:00] D02: 1 d4 d5 2 Nf3 sidelines, including 2...Nf6 3 g3 and 2...Nf6 3 Bf4} Bg6 {[%emt 0:01:58]} 11. exd5 {[%emt 0:06:32]} (11. e5 Ne4 12. Nxe4 Bxe4 13. Nh2 Bg6 14. h4 h6 15. Bf1 c5 16. Bd3 Bxd3 17. Qxd3 cxd4 18. cxd4 {1-0 (38) Anand,V (2773)-McShane,L (2684) London 2013 CBM 158 [Ramirez Alvarez,Alejandro]}) 11... cxd5 {[%emt 0:05:25]} 12. a4 {[%emt 0:00:24]} Ne4 $146 {[%emt 0:10:02]} 13. Nxe4 {[%emt 0:02:03]} Bxe4 {[%emt 0:00:05]} 14. Bf1 {[%emt 0:00:34]} Rc8 {[%emt 0:03:38]} 15. a5 {[%emt 0:05:06]} a6 {[%emt 0:03:26]} 16. Nd2 {[%emt 0:01:55]} Bg6 {[%emt 0:00:39]} 17. Qb3 {[%emt 0:00:34]} Qc7 {[%emt 0:02:02]} 18. Nf3 {[%emt 0:10:06]} Bd6 {[%emt 0:00:35]} 19. Nh4 {[%emt 0:09:56]} Be4 {[%emt 0:03:00]} 20. Ng2 {[%emt 0:00:08]} e5 {[%emt 0:05:54]} 21. Be3 {[%emt 0:00:29]} Rfe8 {[%emt 0:03:13]} 22. Qd1 {[%emt 0:03:05]} h6 {[%emt 0:11:23]} 23. Be2 {[%emt 0:25:15]} Nf6 {[%emt 0:11:17]} 24. dxe5 {[%emt 0:01:38]} Bxe5 {[%emt 0:00:02]} 25. Bf1 {[%emt 0:06:16]} Qd7 {[%emt 0:06:32]} 26. Nf4 {[%emt 0:00:20]} Bf5 {[%emt 0:07:32]} 27. Kh2 {[%emt 0:01:05]} g5 $14 {[%emt 0:03:13]} 28. Bd4 {[%emt 0:04:00]} Ne4 {[%emt 0:05:55]} 29. Bxe5 {[%emt 0:01:13]} Rxe5 {[%emt 0:00:01]} 30. Qd4 {[%emt 0:00:48]} Qd6 {[%emt 0:05:03]} 31. Nd3 {[%emt 0:00:16]} Re6 {[%emt 0:00:23]} 32. Nb4 {[%emt 0:00:15]} Rc5 {[%emt 0:00:46]} 33. Rad1 {[%emt 0:00:46]} g4 {[%emt 0:07:55]} 34. h4 {[%emt 0:04:13]} f6 {[%emt 0:01:10]} 35. Nxd5 {[%emt 0:00:53]} Re5 {[%emt 0:00:29]} 36. Ne3 {[%emt 0:00:46]} Qe6 {[%emt 0:00:35]} 37. Bc4 {[%emt 0:01:17]} Rxc4 {[%emt 0:00:03]} 38. Nxc4 {[%emt 0:00:12]} Nxf2 {[%emt 0:01:01]} 39. Rxe5 {[%emt 0:01:37]} fxe5 {[%emt 0:00:12]} 40. Qxf2 {[%emt 0:00:11]} Qxc4 {[%emt 0:00:50]} 41. Rd8+ {[%emt 0:00:06]} Kg7 {[%emt 0:00:04]} 42. Qxf5 {[%emt 0:00:08]} Qe2+ {[%emt 0:00:17]} 43. Kg1 {[%emt 0:00:07]} Qe1+ {[%emt 0:00:16]} 44. Kg2 {[%emt 0:00:09]} Qe2+ {[%emt 0:00:18]} 45. Qf2 {[%emt 0:00:07]} Qe4+ {[%emt 0:00:03]} 46. Kh2 {[%emt 0:00:09]} 1-0